fUSD/lending_fUSD_20240222
["ID","MTS","AMOUNT","RATE_DAILY","PERIOD"]
[314825782,1708571462511,-200000.0,0.00035648,15]
[314825783,1708571462525,-154.08,0.00035664,2]
[314825784,1708571462540,-1187.669455,0.00035672,8]
[314825785,1708571462560,-686.06,0.00035691,2]
[314825786,1708571462575,-1688.0,0.00035711,14]
[314825787,1708571462589,-1688.0,0.00035713,14]
[314825788,1708571462605,-1688.0,0.00035714,14]
[314825789,1708571462624,-1688.0,0.00035719,14]
[314825790,1708571462640,-1688.0,0.0003572,14]
[314825791,1708571462656,-1688.0,0.00035721,14]
[314825792,1708571462671,-150.0,0.00035726,2]
[314825793,1708571462687,-1688.0,0.00035733,14]
[314825794,1708571462701,-1688.0,0.00035734,14]
[314825795,1708571462716,-1688.01,0.00035738,14]
[314825796,1708571462731,-200.0,0.00035739,3]
[314825797,1708571462746,-800.0,0.00035739,3]
[314825798,1708571462761,-200.0,0.00035739,10]
[314825799,1708571462776,-500.0,0.00035739,10]
[314825800,1708571462791,-200.0,0.00035739,10]
[314825801,1708571462807,-1688.0,0.0003574,14]
[314825802,1708571462821,-1688.0,0.00035741,14]
[314825803,1708571462837,-1688.0,0.00035743,14]
[314825804,1708571462855,-1688.0,0.00035743,14]
[314825805,1708571462871,-1688.0,0.00035743,14]
[314825806,1708571462885,-1688.0,0.00035745,14]
[314825807,1708571462902,-1688.0,0.00035745,14]
[314825808,1708571462921,-1688.0,0.00035747,14]
[314825809,1708571462938,-1688.0,0.00035749,14]
[314825810,1708571462955,-1018.7,0.00035751,14]
[314825811,1708571462973,-1688.0,0.00035755,14]
[314825812,1708571462989,-1688.0,0.00035756,14]
[314825813,1708571463005,-197.52048662,0.00035775,2]
[314825814,1708571463021,-3070.29,0.00035798,2]
[314825815,1708571463038,-1500.0,0.00035799,2]
[314825816,1708571463052,-173.0,0.00035816,7]
[314825817,1708571463067,-3543.97795147,0.00035853,2]
[314825818,1708571463082,-150.0,0.00035874,30]
[314825819,1708571463097,-150.0,0.00035874,30]
[314825820,1708571463112,-686.06,0.00035874,2]
[314825821,1708571463127,-686.06,0.00035874,2]
[314825822,1708571463141,-500.0,0.00035874,2]
[314825823,1708571463156,-500.0,0.00035874,2]
[314825824,1708571463172,-548.46409271,0.00035874,2]
[314825825,1708571463186,-800.0,0.00035874,3]
[314825826,1708571463200,-154.08,0.00035875,2]
[314825827,1708571463216,-330085.93071252,0.00035875,2]
[314825828,1708571463231,-178749.12951298,0.00035875,2]
[314825829,1708571463246,-150.0,0.00035889,30]
[314825830,1708571463260,-150.0,0.00035889,30]
[314825831,1708571463276,-150.0,0.00035889,30]
[314825832,1708571463291,-150.0,0.00035889,30]
[314825833,1708571463306,-158.55229225,0.00035889,30]
[314825834,1708571463320,-150.0,0.00035889,30]
[314825835,1708571463335,-150.0,0.00035889,30]
[314825836,1708571463350,-150.0,0.00035889,30]
[314825837,1708571463366,-686.06,0.00035889,2]
[314825838,1708571463381,-686.06,0.00035889,2]
[314825839,1708571463395,-686.06,0.00035889,2]
[314825840,1708571463410,-686.06,0.00035889,2]
[314825841,1708571463426,-500.0,0.0003589,2]
[314825842,1708571463441,-505.19361486,0.0003589,2]
[314825843,1708571463456,-500.0,0.0003589,2]
[314825844,1708571463472,-500.0,0.0003589,2]
[314825845,1708571463488,-500.0,0.0003589,2]
[314825846,1708571463503,-500.0,0.0003589,2]
[314825847,1708571463520,-500.0,0.0003589,2]
[314825848,1708571463535,-500.0,0.0003589,2]
[314825849,1708571463550,-500.0,0.0003589,2]
[314825850,1708571463566,-500.0,0.0003589,2]
[314825851,1708571463582,-500.0,0.0003589,2]
[314825852,1708571463597,-510.47749136,0.0003589,2]
[314825853,1708571463618,-500.0,0.0003589,2]
[314825854,1708571463633,-500.0,0.0003589,2]
[314825855,1708571463647,-500.0,0.0003589,2]
[314825856,1708571463662,-629.38,0.0003589,2]
[314825857,1708571463677,-500.0,0.0003589,2]
[314825858,1708571463691,-500.0,0.0003589,2]
[314825859,1708571463706,-504.71452735,0.0003589,2]
[314825860,1708571463720,-500.0,0.0003589,2]
[314825861,1708571463735,-500.0,0.0003589,2]
[314825862,1708571463749,-500.0,0.0003589,2]
[314825863,1708571463764,-500.0,0.0003589,2]
[314825864,1708571463779,-182.87205486,0.0003589,2]
[314825865,1708571463792,-500.0,0.0003589,2]
[314825866,1708571463807,-500.0,0.0003589,2]
[314825867,1708571463822,-500.0,0.0003589,2]
[314825868,1708571463831,-500.0,0.0003589,2]
[314825869,1708571463841,-500.0,0.0003589,2]
[314825870,1708571463850,-500.0,0.0003589,2]
[314825871,1708571463859,-500.0,0.0003589,2]
[314825872,1708571463869,-500.0,0.0003589,2]
[314825873,1708571463878,-538.61,0.0003589,2]
[314825874,1708571463887,-609.91428117,0.0003589,15]
[314825875,1708571463896,-500.0,0.0003589,2]
[314825876,1708571463906,-500.0,0.0003589,2]
[314825877,1708571463916,-500.0,0.0003589,2]
[314825878,1708571463925,-500.0,0.0003589,2]
[314825879,1708571464310,-505.40041471,0.0003589,2]
[314825880,1708571464334,-500.0,0.0003589,2]
[314825881,1708571464347,-500.0,0.0003589,2]
[314825882,1708571464357,-500.0,0.0003589,2]
[314825883,1708571464366,-500.0,0.0003589,2]
[314825884,1708571464376,-500.0,0.0003589,2]
[314825885,1708571464385,-500.0,0.0003589,2]
[314825886,1708571464395,-500.0,0.0003589,2]
[314825887,1708571464404,-500.0,0.0003589,2]
[314825888,1708571464414,-500.0,0.0003589,2]
[314825889,1708571464424,-512.04834638,0.0003589,2]
[314825890,1708571464434,-500.0,0.0003589,2]
[314825891,1708571464444,-500.0,0.0003589,2]
[314825892,1708571464453,-500.0,0.0003589,2]
[314825893,1708571464463,-293.11644371,0.0003589,2]
[314825894,1708571464473,-500.0,0.0003589,2]
[314825895,1708571464482,-500.0,0.0003589,2]
[314825896,1708571464491,-500.0,0.0003589,2]
[314825897,1708571464500,-500.0,0.0003589,2]
[314825898,1708571464509,-550.240533,0.0003589,2]
[314825899,1708571464521,-500.0,0.0003589,2]
[314825900,1708571464531,-500.0,0.0003589,2]
[314825901,1708571464542,-306.18949662,0.0003589,2]
[314825902,1708571464551,-500.0,0.0003589,2]
[314825903,1708571464561,-500.0,0.0003589,2]
[314825904,1708571464571,-500.0,0.0003589,2]
[314825905,1708571464581,-500.0,0.0003589,2]
[314825906,1708571464592,-500.0,0.0003589,2]
[314825907,1708571464602,-471.92968839,0.0003589,2]
[314825908,1708571464613,-500.0,0.0003589,2]
[314825909,1708571464623,-500.0,0.0003589,2]
[314825910,1708571464632,-500.0,0.0003589,2]
[314825911,1708571464641,-500.0,0.0003589,2]
[314825912,1708571464651,-500.0,0.0003589,2]
[314825913,1708571464660,-409.61515587,0.0003589,2]
[314825914,1708571464669,-500.0,0.0003589,2]
[314825915,1708571464678,-500.0,0.0003589,2]
[314825916,1708571464687,-523.08340776,0.0003589,2]
[314825917,1708571464697,-530.96695862,0.0003589,2]
[314825918,1708571464707,-500.0,0.0003589,2]
[314825919,1708571464716,-500.0,0.0003589,2]
[314825920,1708571464726,-500.0,0.0003589,2]
[314825921,1708571464735,-500.0,0.0003589,2]
[314825922,1708571464745,-500.0,0.0003589,2]
[314825923,1708571464755,-500.0,0.0003589,2]
[314825924,1708571464766,-500.0,0.0003589,2]
[314825925,1708571464775,-500.0,0.0003589,2]
[314825926,1708571464785,-505.04199354,0.0003589,2]
[314825927,1708571464794,-500.0,0.0003589,2]
[314825928,1708571464803,-500.0,0.0003589,2]
[314825929,1708571464812,-155.88917094,0.0003589,2]
[314825930,1708571464821,-522.46395841,0.0003589,2]
[314825931,1708571464831,-500.0,0.0003589,2]
[314825932,1708571464840,-500.0,0.0003589,2]
[314825933,1708571464849,-500.0,0.0003589,2]
[314825934,1708571464858,-500.0,0.0003589,2]
[314825935,1708571464868,-500.0,0.0003589,2]
[314825936,1708571464877,-500.0,0.0003589,2]
[314825937,1708571464886,-500.0,0.0003589,2]
[314825938,1708571464895,-500.0,0.0003589,2]
[314825939,1708571464904,-500.0,0.0003589,2]
[314825940,1708571464913,-500.0,0.0003589,2]
[314825941,1708571464923,-500.0,0.0003589,2]
[314825942,1708571464933,-509.95572855,0.0003589,2]
[314825943,1708571464942,-500.0,0.0003589,2]
[314825944,1708571464952,-500.0,0.0003589,2]
[314825945,1708571464961,-500.0,0.0003589,2]
[314825946,1708571464970,-500.0,0.0003589,2]
[314825947,1708571464979,-500.0,0.0003589,2]
[314825948,1708571464989,-500.0,0.0003589,2]
[314825949,1708571464998,-500.0,0.0003589,2]
[314825950,1708571465008,-500.0,0.0003589,2]
[314825951,1708571465018,-500.0,0.0003589,2]
[314825952,1708571465028,-500.0,0.0003589,2]
[314825953,1708571465037,-495.74009364,0.0003589,2]
[314825954,1708571465047,-500.0,0.0003589,2]
[314825955,1708571465056,-500.0,0.0003589,2]
[314825956,1708571465066,-500.0,0.0003589,2]
[314825957,1708571465076,-500.0,0.0003589,2]
[314825958,1708571465085,-517.72,0.0003589,2]
[314825959,1708571465095,-500.0,0.0003589,2]
[314825960,1708571465104,-500.0,0.0003589,2]
[314825961,1708571465114,-500.0,0.0003589,2]
[314825962,1708571465125,-500.0,0.0003589,2]
[314825963,1708571465135,-500.0,0.0003589,2]
[314825964,1708571465146,-500.0,0.0003589,2]
[314825965,1708571465156,-500.0,0.0003589,2]
[314825966,1708571465165,-500.0,0.0003589,2]
[314825967,1708571465175,-507.94,0.0003589,2]
[314825968,1708571465184,-500.0,0.0003589,2]
[314825969,1708571465194,-500.0,0.0003589,2]
[314825970,1708571465204,-559.34,0.0003589,2]
[314825971,1708571465214,-516.39195121,0.0003589,2]
[314825972,1708571465223,-504.16534116,0.0003589,2]
[314825973,1708571465233,-500.0,0.0003589,2]
[314825974,1708571465243,-552.36685104,0.0003589,2]
[314825975,1708571465253,-490.17136767,0.0003589,2]
[314825976,1708571465263,-500.0,0.0003589,2]
[314825977,1708571465274,-503.51646156,0.0003589,2]
[314825978,1708571465284,-500.0,0.0003589,2]
[314825979,1708571465294,-500.0,0.0003589,2]
[314825980,1708571465304,-500.0,0.0003589,2]
[314825981,1708571465314,-500.0,0.0003589,2]
[314825982,1708571465323,-500.0,0.0003589,2]
[314825983,1708571465333,-500.0,0.0003589,2]
[314825984,1708571465343,-500.0,0.0003589,2]
[314825985,1708571465353,-500.0,0.0003589,2]
[314825986,1708571465363,-500.0,0.0003589,2]
[314825987,1708571465373,-565.93633082,0.0003589,2]
[314825988,1708571465383,-500.0,0.0003589,2]
[314825989,1708571465393,-500.0,0.0003589,2]
[314825990,1708571465403,-502.40583819,0.0003589,2]
[314825991,1708571465413,-500.0,0.0003589,2]
[314825992,1708571465423,-500.0,0.0003589,2]
[314825993,1708571465433,-500.0,0.0003589,2]
[314825994,1708571465443,-500.0,0.0003589,2]
[314825995,1708571465453,-514.29504857,0.0003589,2]
[314825996,1708571465463,-500.0,0.0003589,2]
[314825997,1708571465473,-500.0,0.0003589,2]
[314825998,1708571465483,-500.0,0.0003589,2]
[314825999,1708571465492,-500.0,0.0003589,2]
[314826000,1708571465502,-500.0,0.0003589,2]
[314826001,1708571465512,-255.18645212,0.0003589,2]
[314826002,1708571465524,-500.0,0.0003589,2]
[314826003,1708571465535,-500.0,0.0003589,2]
[314826004,1708571465545,-500.0,0.0003589,2]
[314826005,1708571465555,-500.0,0.0003589,2]
[314826006,1708571465566,-500.0,0.0003589,2]
[314826007,1708571465576,-500.0,0.0003589,2]
[314826008,1708571465585,-500.0,0.0003589,2]
[314826009,1708571465596,-500.0,0.0003589,2]
[314826010,1708571465606,-532.13950373,0.0003589,2]
[314826011,1708571465619,-500.0,0.0003589,2]
[314826012,1708571465630,-513.89207853,0.0003589,2]
[314826013,1708571465641,-500.0,0.0003589,2]
[314826014,1708571465651,-500.0,0.0003589,2]
[314826015,1708571465661,-500.0,0.0003589,2]
[314826016,1708571465673,-276.66331857,0.0003589,2]
[314826017,1708571465683,-500.0,0.0003589,2]
[314826018,1708571465693,-500.0,0.0003589,2]
[314826019,1708571465703,-250.0,0.0003589,2]
[314826020,1708571465713,-500.0,0.0003589,2]
[314826021,1708571465723,-500.0,0.0003589,2]
[314826022,1708571465732,-500.0,0.0003589,2]
[314826023,1708571465742,-490.31178831,0.0003589,2]
[314826024,1708571465752,-500.0,0.0003589,2]
[314826025,1708571465761,-500.0,0.0003589,2]
[314826026,1708571465772,-500.0,0.0003589,2]
[314826027,1708571465782,-563.78087618,0.0003589,2]
[314826028,1708571465792,-500.0,0.0003589,2]
[314826029,1708571465802,-500.0,0.0003589,2]
[314826030,1708571465812,-566.20284141,0.0003589,2]
[314826031,1708571465823,-319.44204108,0.0003589,2]
[314826032,1708571465833,-500.0,0.0003589,2]
[314826033,1708571465844,-500.0,0.0003589,2]
[314826034,1708571465853,-500.0,0.0003589,2]
[314826035,1708571465863,-500.0,0.0003589,2]
[314826036,1708571465874,-500.0,0.0003589,2]
[314826037,1708571465884,-500.0,0.0003589,2]
[314826038,1708571465894,-500.0,0.0003589,2]
[314826039,1708571465903,-500.0,0.0003589,2]
[314826040,1708571465913,-500.0,0.0003589,2]
[314826041,1708571465922,-500.0,0.0003589,2]
[314826042,1708571465932,-500.0,0.0003589,2]
[314826043,1708571465941,-500.0,0.0003589,2]
[314826044,1708571465951,-784.63,0.0003589,2]
[314826045,1708571465961,-500.0,0.0003589,2]
[314826046,1708571465971,-500.0,0.0003589,2]
[314826047,1708571465981,-540.13120172,0.0003589,2]
[314826048,1708571465991,-500.0,0.0003589,2]
[314826049,1708571466001,-500.0,0.0003589,2]
[314826050,1708571466011,-500.0,0.0003589,2]
[314826051,1708571466022,-500.0,0.0003589,2]
[314826052,1708571466032,-500.0,0.0003589,2]
[314826053,1708571466041,-507.06708718,0.0003589,2]
[314826054,1708571466052,-500.0,0.0003589,2]
[314826055,1708571466062,-500.0,0.0003589,2]
[314826056,1708571466072,-500.0,0.0003589,2]
[314826057,1708571466081,-565.22618791,0.0003589,2]
[314826058,1708571466091,-500.0,0.0003589,2]
[314826059,1708571466100,-497.34723539,0.0003589,2]
[314826060,1708571466110,-500.0,0.0003589,2]
[314826061,1708571466119,-500.0,0.0003589,2]
[314826062,1708571466129,-500.0,0.0003589,2]
[314826063,1708571466139,-500.0,0.0003589,2]
[314826064,1708571466149,-509.78972728,0.0003589,2]
[314826065,1708571466158,-500.0,0.0003589,2]
[314826066,1708571466167,-500.0,0.0003589,2]
[314826067,1708571466177,-500.0,0.0003589,2]
[314826068,1708571466188,-500.0,0.0003589,2]
[314826069,1708571466198,-500.0,0.0003589,2]
[314826070,1708571466208,-500.0,0.0003589,2]
[314826071,1708571466218,-504.61840896,0.0003589,2]
[314826072,1708571466227,-500.0,0.0003589,2]
[314826073,1708571466237,-500.0,0.0003589,2]
[314826074,1708571466246,-500.0,0.0003589,2]
[314826075,1708571466256,-500.0,0.0003589,2]
[314826076,1708571466266,-500.0,0.0003589,2]
[314826077,1708571466275,-500.0,0.0003589,2]
[314826078,1708571466285,-500.0,0.0003589,2]
[314826079,1708571466296,-500.0,0.0003589,2]
[314826080,1708571466306,-503.95401143,0.0003589,2]
[314826081,1708571466316,-500.0,0.0003589,2]
[314826082,1708571466326,-500.0,0.0003589,2]
[314826083,1708571466337,-576.93,0.0003589,2]
[314826084,1708571466347,-500.0,0.0003589,2]
[314826085,1708571466357,-500.0,0.0003589,2]
[314826086,1708571466368,-523.51052546,0.0003589,2]
[314826087,1708571466378,-500.0,0.0003589,2]
[314826088,1708571466388,-500.0,0.0003589,2]
[314826089,1708571466398,-500.0,0.0003589,2]
[314826090,1708571466408,-506.93701557,0.0003589,2]
[314826091,1708571466419,-500.0,0.0003589,2]
[314826092,1708571466429,-500.0,0.0003589,2]
[314826093,1708571466440,-512.88343767,0.0003589,2]
[314826094,1708571466451,-500.0,0.0003589,2]
[314826095,1708571466463,-502.10357934,0.0003589,2]
[314826096,1708571466474,-500.0,0.0003589,2]
[314826097,1708571466484,-500.0,0.0003589,2]
[314826098,1708571466495,-500.0,0.0003589,2]
[314826099,1708571466505,-500.0,0.0003589,2]
[314826100,1708571466515,-500.0,0.0003589,2]
[314826101,1708571466525,-500.0,0.0003589,2]
[314826102,1708571466535,-308.14653939,0.0003589,2]
[314826103,1708571466545,-500.0,0.0003589,2]
[314826104,1708571466555,-500.0,0.0003589,2]
[314826105,1708571466565,-500.0,0.0003589,2]
[314826106,1708571466576,-500.0,0.0003589,2]
[314826107,1708571466586,-500.0,0.0003589,2]
[314826108,1708571466597,-500.0,0.0003589,2]
[314826109,1708571466608,-500.0,0.0003589,2]
[314826110,1708571466622,-500.0,0.0003589,2]
[314826111,1708571466632,-500.0,0.0003589,2]
[314826112,1708571466643,-500.0,0.0003589,2]
[314826113,1708571466652,-926.86,0.0003589,2]
[314826114,1708571466662,-500.0,0.0003589,2]
[314826115,1708571466672,-500.0,0.0003589,2]
[314826116,1708571466682,-500.0,0.0003589,2]
[314826117,1708571466692,-500.0,0.0003589,2]
[314826118,1708571466702,-500.0,0.0003589,2]
[314826119,1708571466712,-902.85,0.0003589,2]
[314826120,1708571466721,-500.0,0.0003589,2]
[314826121,1708571466731,-500.0,0.0003589,2]
[314826122,1708571466741,-500.0,0.0003589,2]
[314826123,1708571466751,-500.0,0.0003589,2]
[314826124,1708571466761,-500.0,0.0003589,2]
[314826125,1708571466772,-621.86,0.0003589,2]
[314826126,1708571466782,-502.99900561,0.0003589,2]
[314826127,1708571466792,-500.0,0.0003589,2]
[314826128,1708571466802,-500.0,0.0003589,2]
[314826129,1708571466812,-453.0490761,0.0003589,2]
[314826130,1708571466821,-502.71479683,0.0003589,2]
[314826131,1708571466830,-500.0,0.0003589,2]
[314826132,1708571466840,-500.0,0.0003589,2]
[314826133,1708571466849,-500.0,0.0003589,2]
[314826134,1708571466859,-500.0,0.0003589,2]
[314826135,1708571466869,-500.0,0.0003589,2]
[314826136,1708571466879,-500.0,0.0003589,2]
[314826137,1708571466888,-500.0,0.0003589,2]
[314826138,1708571466897,-500.0,0.0003589,2]
[314826139,1708571466907,-500.0,0.0003589,2]
[314826140,1708571466917,-500.0,0.0003589,2]
[314826141,1708571466927,-500.0,0.0003589,2]
[314826142,1708571466936,-500.0,0.0003589,2]
[314826143,1708571466946,-500.0,0.0003589,2]
[314826144,1708571466955,-500.0,0.0003589,2]
[314826145,1708571466966,-413.05598572,0.0003589,2]
[314826146,1708571466975,-1244.2,0.0003589,2]
[314826147,1708571466985,-500.0,0.0003589,2]
[314826148,1708571466995,-868.83,0.0003589,2]
[314826149,1708571467005,-738.68,0.0003589,2]
[314826150,1708571467015,-504.36054249,0.0003589,2]
[314826151,1708571467025,-500.0,0.0003589,2]
[314826152,1708571467035,-1197.07,0.0003589,2]
[314826153,1708571467044,-500.0,0.0003589,2]
[314826154,1708571467054,-500.0,0.0003589,2]
[314826155,1708571467068,-1081.66,0.0003589,2]
[314826156,1708571467090,-500.0,0.0003589,2]
[314826157,1708571467113,-500.0,0.0003589,2]
[314826158,1708571467133,-500.0,0.0003589,2]
[314826159,1708571467144,-500.0,0.0003589,2]
[314826160,1708571467154,-746.3,0.0003589,2]
[314826161,1708571467164,-500.0,0.0003589,2]
[314826162,1708571467174,-500.0,0.0003589,2]
[314826163,1708571467183,-500.0,0.0003589,2]
[314826164,1708571467193,-500.0,0.0003589,2]
[314826165,1708571467203,-500.0,0.0003589,2]
[314826166,1708571467213,-500.0,0.0003589,2]
[314826167,1708571467223,-500.0,0.0003589,2]
[314826168,1708571467234,-500.0,0.0003589,2]
[314826169,1708571467244,-544.22442429,0.0003589,2]
[314826170,1708571467254,-766.48,0.0003589,2]
[314826171,1708571467264,-500.0,0.0003589,2]
[314826172,1708571467274,-500.0,0.0003589,2]
[314826173,1708571467283,-500.0,0.0003589,2]
[314826174,1708571467293,-500.0,0.0003589,2]
[314826175,1708571467303,-500.0,0.0003589,2]
[314826176,1708571467312,-500.0,0.0003589,2]
[314826177,1708571467322,-500.0,0.0003589,2]
[314826178,1708571467332,-500.0,0.0003589,2]
[314826179,1708571467341,-500.0,0.0003589,2]
[314826180,1708571467351,-500.0,0.0003589,2]
[314826181,1708571467361,-500.0,0.0003589,2]
[314826182,1708571467370,-503.82075192,0.0003589,2]
[314826183,1708571467381,-500.0,0.0003589,2]
[314826184,1708571467391,-500.0,0.0003589,2]
[314826185,1708571467401,-495.59028499,0.0003589,2]
[314826186,1708571467411,-500.0,0.0003589,2]
[314826187,1708571467421,-863.39,0.0003589,2]
[314826188,1708571467431,-590.44,0.0003589,2]
[314826189,1708571467441,-500.0,0.0003589,2]
[314826190,1708571467451,-1000.0,0.0003589,7]
[314826191,1708571467461,-599.33,0.0003589,2]
[314826192,1708571467471,-500.0,0.0003589,2]
[314826193,1708571467480,-500.0,0.0003589,2]
[314826194,1708571467490,-500.0,0.0003589,2]
[314826195,1708571467500,-500.0,0.0003589,2]
[314826196,1708571467509,-500.0,0.0003589,2]
[314826197,1708571467520,-613.73,0.0003589,2]
[314826198,1708571467530,-500.0,0.0003589,2]
[314826199,1708571467540,-500.0,0.0003589,2]
[314826200,1708571467550,-500.0,0.0003589,2]
[314826201,1708571467559,-503.40836635,0.0003589,2]
[314826202,1708571467570,-500.0,0.0003589,2]
[314826203,1708571467580,-507.39678928,0.0003589,2]
[314826204,1708571467591,-1052.29,0.0003589,2]
[314826205,1708571467600,-521.97388575,0.0003589,2]
[314826206,1708571467611,-500.0,0.0003589,2]
[314826207,1708571467621,-500.0,0.0003589,2]
[314826208,1708571467631,-500.0,0.0003589,2]
[314826209,1708571467836,-500.0,0.0003589,2]
[314826210,1708571467853,-885.26,0.0003589,2]
[314826211,1708571467863,-518.79496622,0.0003589,2]
[314826212,1708571467873,-512.6687616,0.0003589,2]
[314826213,1708571467883,-500.0,0.0003589,2]
[314826214,1708571467893,-500.79,0.0003589,2]
[314826215,1708571467902,-500.0,0.0003589,2]
[314826216,1708571467912,-500.0,0.0003589,2]
[314826217,1708571467921,-1518.98,0.0003589,2]
[314826218,1708571467931,-572.92,0.0003589,2]
[314826219,1708571467941,-537.4,0.0003589,2]
[314826220,1708571467950,-500.0,0.0003589,2]
[314826221,1708571467961,-500.0,0.0003589,2]
[314826222,1708571467970,-500.0,0.0003589,2]
[314826223,1708571467980,-543.45264501,0.0003589,2]
[314826224,1708571467990,-588.98,0.0003589,2]
[314826225,1708571467999,-543.5,0.0003589,2]
[314826226,1708571468009,-500.0,0.0003589,2]
[314826227,1708571468019,-1021.19,0.0003589,2]
[314826228,1708571468029,-533.41,0.0003589,2]
[314826229,1708571468039,-804.62,0.0003589,2]
[314826230,1708571468050,-510.08043423,0.0003589,2]
[314826231,1708571468060,-506.54293067,0.0003589,2]
[314826232,1708571468069,-500.0,0.0003589,2]
[314826233,1708571468078,-500.0,0.0003589,2]
[314826234,1708571468088,-500.0,0.0003589,2]
[314826235,1708571468097,-500.0,0.0003589,2]
[314826236,1708571468107,-500.0,0.0003589,2]
[314826237,1708571468116,-500.0,0.0003589,2]
[314826238,1708571468126,-500.0,0.0003589,2]
[314826239,1708571468135,-500.0,0.0003589,2]
[314826240,1708571468145,-500.0,0.0003589,2]
[314826241,1708571468154,-500.0,0.0003589,2]
[314826242,1708571468164,-500.0,0.0003589,2]
[314826243,1708571468173,-500.0,0.0003589,2]
[314826244,1708571468182,-805.48,0.0003589,2]
[314826245,1708571468192,-500.0,0.0003589,2]
[314826246,1708571468202,-507.26428016,0.0003589,2]
[314826247,1708571468212,-585.68,0.0003589,2]
[314826248,1708571468222,-500.0,0.0003589,2]
[314826249,1708571468231,-528.81235943,0.0003589,2]
[314826250,1708571468241,-507.25340825,0.0003589,2]
[314826251,1708571468251,-500.0,0.0003589,2]
[314826252,1708571468261,-793.62,0.0003589,2]
[314826253,1708571468272,-500.0,0.0003589,2]
[314826254,1708571468282,-500.0,0.0003589,2]
[314826255,1708571468292,-1274.16,0.0003589,2]
[314826256,1708571468302,-500.0,0.0003589,2]
[314826257,1708571468311,-505.02430737,0.0003589,2]
[314826258,1708571468321,-1038.93,0.0003589,2]
[314826259,1708571468331,-500.0,0.0003589,2]
[314826260,1708571468341,-500.0,0.0003589,2]
[314826261,1708571468351,-521.28855354,0.0003589,2]
[314826262,1708571468361,-500.0,0.0003589,2]
[314826263,1708571468370,-665.6,0.0003589,2]
[314826264,1708571468380,-502.22,0.0003589,2]
[314826265,1708571468390,-513.73275551,0.0003589,2]
[314826266,1708571468400,-500.0,0.0003589,2]
[314826267,1708571468409,-500.0,0.0003589,2]
[314826268,1708571468419,-500.0,0.0003589,2]
[314826269,1708571468429,-682.52,0.0003589,2]
[314826270,1708571468439,-500.0,0.0003589,2]
[314826271,1708571468449,-500.0,0.0003589,2]
[314826272,1708571468458,-821.65,0.0003589,2]
[314826273,1708571468468,-500.0,0.0003589,2]
[314826274,1708571468477,-500.0,0.0003589,2]
[314826275,1708571468487,-500.0,0.0003589,2]
[314826276,1708571468498,-500.0,0.0003589,2]
[314826277,1708571468507,-500.0,0.0003589,2]
[314826278,1708571468519,-500.0,0.0003589,2]
[314826279,1708571468529,-500.0,0.0003589,2]
[314826280,1708571468538,-500.0,0.0003589,2]
[314826281,1708571468549,-500.0,0.0003589,2]